bitfinex/quotes_ETHUSD_20230905
["timestamp","ask_amount","ask_price","bid_price","bid_amount"]
[1693939263616,0.01493762,1635.2,1635.0,14.0216651]
[1693939263816,0.01493762,1635.2,1635.0,19.0216651]
[1693939265123,0.01493762,1635.2,1635.1,3.06701426]
[1693939265327,0.01493762,1635.2,1635.1,36.82199433]
[1693939265642,30.43,1635.5,1635.1,41.71929327]
[1693939265853,12.22736,1635.7,1635.3,18.34483]
[1693939266023,6.1136,1635.7,1635.3,21.41184426]
[1693939266529,6.1136,1635.7,1635.3,26.41184426]
[1693939266730,0.0137938,1635.6,1635.3,26.41184426]
[1693939267038,0.0137938,1635.6,1635.4,2.64118443]
[1693939267239,0.0137938,1635.6,1635.5,6.11433]
[1693939267647,6.1136,1635.7,1635.5,6.11433]
[1693939268652,0.0137938,1635.6,1635.5,6.11433]
[1693939269759,6.1136,1635.7,1635.5,6.11433]
[1693939269942,6.11374,1635.7,1635.5,6.11433]
[1693939270145,6.11374,1635.7,1635.5,7.60134044]
[1693939270724,0.0137885,1635.6,1635.5,7.60134044]
[1693939271770,6.11374,1635.7,1635.5,7.60134044]
[1693939272081,6.11374,1635.7,1635.5,12.60134044]
[1693939272282,6.11285,1635.9,1635.6,3.06701426]
[1693939272420,80.9384501,1636.0,1635.7,26.13883606]
[1693939272421,30.43,1636.0,1635.7,26.13883606]
[1693939272619,0.101,1636.2,1635.9,18.33828]
[1693939273239,0.101,1636.2,1635.9,23.33828]
[1693939275743,0.01275966,1636.1,1635.9,23.33828]
[1693939276057,0.101,1636.2,1635.9,23.33828]
[1693939276266,0.101,1636.2,1635.9,26.03097463]
[1693939276741,0.01226396,1636.1,1635.9,26.03097463]
[1693939277683,0.01226396,1636.1,1636.0,2.65616648]
[1693939277858,0.01226396,1636.1,1636.0,14.88108648]
[1693939278644,0.01226396,1636.1,1636.0,13.28738659]
[1693939278848,0.01226396,1636.1,1636.0,15.8629844]
[1693939279771,0.01226396,1636.1,1636.0,14.80051781]
[1693939280290,0.01226396,1636.1,1636.0,21.9754477]
[1693939280480,0.01226396,1636.1,1636.0,23.56911808]
[1693939281048,0.101,1636.2,1636.1,0.02452791]
[1693939281274,0.101,1636.2,1636.1,25.57096288]
[1693939281676,0.11045584,1636.2,1636.1,25.57096288]
[1693939281981,0.11045584,1636.2,1636.1,28.9772925]
[1693939282197,0.11045584,1636.2,1636.1,30.570825]
[1693939282487,0.11045584,1636.2,1636.1,28.9772925]
[1693939282984,0.11045584,1636.2,1636.1,18.3111778]
[1693939283186,7.54317584,1636.2,1636.1,5.02452791]
[1693939283349,19.76661584,1636.2,1636.1,5.02452791]
[1693939283546,19.76661584,1636.2,1636.1,0.02452791]
[1693939294358,13.65489584,1636.2,1636.1,0.02452791]
[1693939294558,15.63154742,1636.2,1636.1,0.02452791]
[1693939295909,14.49814418,1636.2,1636.1,0.02452791]
[1693939296762,14.50832008,1636.2,1636.1,0.02452791]
[1693939297689,12.5316685,1636.2,1636.1,0.02452791]
[1693939300309,12.5316685,1636.2,1635.8,12.86912113]
[1693939300512,13.1199685,1636.2,1635.9,1.06251926]
[1693939300817,13.1199685,1636.2,1635.9,13.93082039]
[1693939300818,7.0082485,1636.2,1635.9,13.93082039]
[1693939301010,7.0082485,1636.2,1636.0,1.06251926]
[1693939301192,7.0082485,1636.2,1636.0,7.17497926]
[1693939301390,7.0082485,1636.2,1636.0,6.11246]
[1693939302713,8.0311959,1636.2,1636.1,1.06247682]
[1693939303104,6.1218959,1636.2,1636.0,6.11246]
[1693939303613,6.1218959,1636.2,1636.1,1.06247742]
[1693939304401,6.1218959,1636.2,1636.1,1.70517855]
[1693939305515,6.1218959,1636.2,1636.1,2.66923025]
[1693939307519,6.1218959,1636.2,1636.1,2.02652912]
[1693939308084,12.2336159,1636.2,1636.1,2.02652912]
[1693939308918,12.2336159,1636.2,1636.1,2.34787969]
[1693939309815,12.2336159,1636.2,1636.1,3.94708078]
[1693939310618,12.2336159,1636.2,1636.1,1.06247742]
[1693939310786,12.2336159,1636.2,1636.1,1.59920109]
[1693939312087,12.2336159,1636.2,1636.1,2.87894787]
[1693939312810,12.2336159,1636.2,1636.1,1.59920109]
[1693939314004,12.2336159,1636.2,1636.1,1.60051392]
[1693939314754,12.2336159,1636.2,1636.0,2.98151873]
[1693939315034,12.2336159,1636.2,1636.1,1.06247742]
[1693939315430,12.2336159,1636.2,1636.0,2.98151873]
[1693939315639,12.2336159,1636.2,1636.1,1.06247742]
[1693939315810,12.2336159,1636.2,1636.0,2.98151873]
[1693939316137,11.10034757,1636.2,1636.1,1.06247742]
[1693939316310,11.10034757,1636.2,1636.0,2.98151873]
[1693939316515,11.10034757,1636.2,1636.1,1.06247742]
[1693939316714,11.10034757,1636.2,1636.1,1.91904131]
[1693939317631,11.10034757,1636.2,1636.1,2.98151873]
[1693939317833,11.10034757,1636.2,1636.1,1.91904131]
[1693939318465,11.10034757,1636.2,1636.1,1.06247742]
[1693939318927,11.10034757,1636.2,1636.0,2.98151873]
[1693939319239,11.10034757,1636.2,1636.1,2.66598019]
[1693939319542,11.10034757,1636.2,1636.1,3.94878314]
[1693939319844,11.1097427,1636.2,1636.1,3.94878314]
[1693939320022,11.1097427,1636.2,1636.1,2.88630572]
[1693939321532,11.1097427,1636.2,1636.1,0.9621091]
[1693939322936,11.1097427,1636.2,1636.1,1.6035218]
[1693939323827,11.1097427,1636.2,1636.1,1.70389012]
[1693939324463,11.1097427,1636.2,1636.1,0.6414127]
[1693939324653,11.1097427,1636.2,1636.1,1.06247742]
[1693939325062,11.1097427,1636.2,1636.0,2.66599922]
[1693939325241,4.9980227,1636.2,1636.1,1.06247742]
[1693939325439,0.00939513,1636.2,1636.1,13.92807012]
[1693939325752,0.00939513,1636.2,1636.1,7.81598012]
[1693939326965,0.00939513,1636.2,1636.1,7.17456742]
[1693939329673,0.00939513,1636.2,1636.1,6.11209]
[1693939329889,0.00939513,1636.2,1636.1,7.59452734]
[1693939337820,0.00939513,1636.2,1636.1,1.48243734]
[1693939342627,0.00939513,1636.2,1636.1,2.5448123]
[1693939343326,0.00939513,1636.2,1636.1,1.48243734]
[1693939343824,0.00939513,1636.2,1636.1,2.54481322]
[1693939351305,0.00939513,1636.2,1636.1,1.06237588]
[1693939351503,6.12111513,1636.2,1636.1,1.06237588]
[1693939353931,6.12111513,1636.2,1635.9,7.7161818]
[1693939354133,14.17993513,1636.2,1636.0,1.70382046]
[1693939354642,14.17993513,1636.2,1636.1,1.06240776]
[1693939355121,14.17993513,1636.2,1636.0,1.70382046]
[1693939355440,14.17993513,1636.2,1636.1,1.06240776]
[1693939355807,14.17993513,1636.2,1636.0,1.70382046]
[1693939356104,14.17993513,1636.2,1636.1,1.06240776]
[1693939356301,14.17993513,1636.2,1636.0,1.70382046]
[1693939356506,14.17993513,1636.2,1636.1,1.06240776]
[1693939357108,14.17993513,1636.2,1636.0,1.70382046]
[1693939357338,14.17993513,1636.2,1636.1,1.06240776]
[1693939357740,14.17993513,1636.2,1636.0,1.70382046]
[1693939357904,14.17993513,1636.2,1636.1,1.06240776]
[1693939358109,14.17993513,1636.2,1636.0,1.70382046]
[1693939358439,14.17993513,1636.2,1636.1,1.06240776]
[1693939359012,14.17993513,1636.2,1636.0,1.70382046]
[1693939366766,8.06821513,1636.2,1636.0,1.70382046]
[1693939367368,8.06821513,1636.2,1636.0,7.81626046]
[1693939367567,8.06821513,1636.2,1636.1,1.06240776]
[1693939368174,0.00939513,1636.2,1636.1,7.17449776]
[1693939368469,0.00939513,1636.2,1636.1,14.67940181]
[1693939368628,6.21205,1636.4,1636.1,14.67940181]
[1693939368835,14.18399,1636.4,1636.1,13.61699405]
[1693939369167,14.18399,1636.4,1636.1,15.21067124]
[1693939369737,0.01004315,1636.3,1636.1,15.21067124]
[1693939369953,0.01004315,1636.3,1636.2,1.52106712]
[1693939370148,0.01004315,1636.3,1636.2,8.69514084]
[1693939370681,6.21205,1636.4,1636.2,8.69514084]
[1693939370883,6.21205,1636.4,1636.2,7.63278712]
[1693939371651,0.01004315,1636.3,1636.2,7.63278712]
[1693939371847,0.01004315,1636.3,1636.2,8.69513048]
[1693939372672,6.21205,1636.4,1636.2,8.69513048]
[1693939372834,6.21205,1636.4,1636.2,7.63278712]
[1693939373469,8.22445,1636.4,1636.2,7.63278712]
[1693939373639,0.01004315,1636.3,1636.2,7.63278712]
[1693939373967,0.01004315,1636.3,1636.2,8.69512951]
[1693939374739,0.101,1636.4,1636.2,16.76926221]
[1693939374942,0.101,1636.4,1636.3,2.73926861]
[1693939375149,0.101,1636.4,1636.3,8.85060861]
[1693939375579,0.101,1636.4,1636.3,16.28294861]
[1693939375773,0.11070287,1636.4,1636.3,17.8766258]
[1693939376478,0.11070287,1636.4,1636.3,20.94364006]
[1693939376684,0.11070287,1636.4,1636.3,27.05498006]
[1693939376890,0.11070287,1636.4,1636.3,27.69639276]
[1693939377693,0.11070287,1636.4,1636.3,27.05498006]
[1693939378011,0.11070287,1636.4,1636.3,32.69639276]
[1693939378381,0.11070287,1636.4,1636.3,32.05498006]
[1693939380504,0.11070287,1636.4,1636.3,13.85060861]
[1693939381028,0.11070287,1636.4,1636.3,8.85060861]
[1693939382850,0.11070287,1636.4,1636.3,7.78826622]
[1693939383343,0.11070287,1636.4,1636.3,13.89960622]
[1693939385633,0.11070287,1636.4,1636.3,12.22268]
[1693939400361,0.11070287,1636.4,1636.2,6.11152]
[1693939400533,8.25557287,1636.4,1636.1,6.11189]
[1693939400734,8.25557287,1636.4,1636.1,6.11186]
[1693939400931,8.25557287,1636.4,1636.1,12.22395]
[1693939401145,9.89202916,1636.4,1636.1,12.22395]
[1693939402365,9.89202916,1636.4,1636.1,6.11186]
[1693939404169,16.00299916,1636.4,1636.1,6.11186]
[1693939405674,16.00299916,1636.4,1636.0,13.35521043]
[1693939405878,16.00299916,1636.4,1636.1,1.06233456]
[1693939406786,7.71168992,1636.3,1636.1,7.17438456]
[1693939406965,6.11139,1636.3,1636.1,6.11205]
[1693939407763,0.00929871,1636.2,1636.1,6.11205]
[1693939407989,0.00929871,1636.2,1636.1,7.17438545]
[1693939426376,0.00929871,1636.2,1636.1,7.81579815]
[1693939427260,0.00929871,1636.2,1636.1,20.03997815]
[1693939427496,0.00929871,1636.2,1636.1,24.71006656]
[1693939427683,0.101,1636.4,1636.1,24.71006656]
[1693939427885,0.101,1636.4,1636.2,1.06233545]
[1693939428083,0.101,1636.4,1636.3,6.11134]
[1693939428287,0.101,1636.4,1636.3,18.33402]
[1693939428482,0.101,1636.4,1636.3,21.36174545]
[1693939428683,0.11123576,1636.4,1636.3,25.74975971]
[1693939428887,0.11123576,1636.4,1636.3,27.34320346]
[1693939434513,0.11123576,1636.4,1636.3,21.23186346]
[1693939435311,0.11123576,1636.4,1636.3,18.1648492]
[1693939435688,0.11123576,1636.4,1636.3,10.7325092]
[1693939436008,0.11123576,1636.4,1636.3,9.13906545]
[1693939436209,0.11123576,1636.4,1636.3,7.17356345]
[1693939438813,0.11123576,1636.4,1636.3,1.06222345]
[1693939442685,0.11123576,1636.4,1636.2,13.54419]
[1693939442917,0.11123576,1636.4,1636.2,12.22319]
[1693939444282,6.22226576,1636.4,1636.1,8.34693645]
[1693939444488,7.49010744,1636.4,1636.2,1.06230864]
[1693939444689,9.36140744,1636.4,1636.2,7.17393864]
[1693939444891,9.36140744,1636.4,1636.2,6.11163]
[1693939445202,9.36140744,1636.4,1636.1,12.8652127]
[1693939445395,15.47243744,1636.4,1636.2,1.06228537]
[1693939445597,9.36140744,1636.4,1636.2,7.17397537]
[1693939445801,1.98253576,1636.4,1636.2,12.22341]
[1693939446213,0.11123576,1636.4,1636.2,12.22341]
[1693939446400,0.11123576,1636.4,1636.3,13.2849332]
[1693939447409,0.11123576,1636.4,1636.3,19.3962732]
[1693939447605,0.11123576,1636.4,1636.3,20.98971695]
[1693939448611,0.11123576,1636.4,1636.3,23.89609892]
[1693939449317,0.11123576,1636.4,1636.3,22.30265517]
[1693939452325,0.11123576,1636.4,1636.3,23.89599373]
[1693939453141,0.11123576,1636.4,1636.3,17.78465373]
[1693939455236,0.11123576,1636.4,1636.3,14.87827176]
[1693939455529,6.22220576,1636.4,1636.3,1.0622532]
[1693939458853,0.11123576,1636.4,1636.3,1.0622532]
[1693939460438,0.11123576,1636.4,1636.3,6.11134]
[1693939461656,0.11123576,1636.4,1636.3,7.17357511]
[1693939472987,0.11123576,1636.4,1636.3,1.06223511]
[1693939475683,0.11123576,1636.4,1636.3,1.70364781]
[1693939475860,0.76799044,1636.4,1636.3,1.70364781]
[1693939476287,0.11123576,1636.4,1636.3,1.70364781]
[1693939477254,0.11123576,1636.4,1636.3,7.81498781]
[1693939483976,0.11123576,1636.4,1636.3,13.92632781]
[1693939500024,0.11123576,1636.4,1636.3,7.81498781]
[1693939501082,0.11123576,1636.4,1636.3,1.70364781]
[1693939501280,0.76799444,1636.4,1636.3,1.70364781]
[1693939502031,12.98993444,1636.4,1636.3,1.70364781]
[1693939502243,12.98993444,1636.4,1636.2,1.70366993]
[1693939502547,14.94533444,1636.4,1636.3,1.06225723]
[1693939502696,14.94533444,1636.4,1636.2,1.70366993]
[1693939502893,14.94533444,1636.4,1636.3,1.06225723]
[1693939503111,14.94533444,1636.4,1636.2,1.70366993]
[1693939503313,14.94533444,1636.4,1636.3,1.06225723]
[1693939503922,14.94533444,1636.4,1636.2,1.70366993]
[1693939505693,8.83436444,1636.4,1636.2,6.7530527]
[1693939505928,8.83436444,1636.4,1636.3,1.0622478]
[1693939506447,2.06663576,1636.4,1636.3,7.1735878]
[1693939506761,0.11123576,1636.4,1636.3,13.9263405]
[1693939506921,0.11123576,1636.4,1636.3,20.9997896]
[1693939507122,0.11123576,1636.4,1636.3,22.5931613]
[1693939507445,0.11123576,1636.4,1636.3,25.72402173]
[1693939508913,0.11123576,1636.4,1636.3,19.61268173]
[1693939509250,0.11123576,1636.4,1636.3,18.65057263]
[1693939509434,0.11123576,1636.4,1636.3,15.5197122]
[1693939509640,0.11123576,1636.4,1636.3,13.9263405]
[1693939509842,0.11123576,1636.4,1636.3,15.5197122]
[1693939510150,0.11123576,1636.4,1636.3,13.9263405]
[1693939513021,0.11123576,1636.4,1636.3,24.74639116]
[1693939513349,0.11123576,1636.4,1636.3,32.48050932]
[1693939515342,0.11123576,1636.4,1636.3,26.36916932]
[1693939515641,0.11123576,1636.4,1636.3,24.88652485]
[1693939515840,0.11123576,1636.4,1636.3,14.38717059]
[1693939516052,0.11123576,1636.4,1636.3,10.37085001]
[1693939516769,0.11123576,1636.4,1636.3,8.77747831]
[1693939522380,0.11123576,1636.4,1636.3,14.88881831]
[1693939522566,0.11123576,1636.4,1636.3,21.00015831]
[1693939522787,0.11123576,1636.4,1636.3,25.66054427]
[1693939523375,0.11123576,1636.4,1636.3,29.31057358]
[1693939523784,0.11123576,1636.4,1636.3,34.31057358]
[1693939523949,0.11123576,1636.4,1636.3,36.43499946]
[1693939528681,0.11123576,1636.4,1636.3,30.32365946]
[1693939528882,0.11123576,1636.4,1636.3,21.48219001]
[1693939531685,0.11123576,1636.4,1636.3,21.75855203]
[1693939532261,0.11123576,1636.4,1636.3,16.75855203]
[1693939532459,0.11123576,1636.4,1636.3,15.16518033]
[1693939549723,0.11123576,1636.4,1636.3,14.52339892]
[1693939550402,0.11123576,1636.4,1636.3,2.94263342]
[1693939550713,0.11123576,1636.4,1636.3,1.33860982]
[1693939550714,18.44414576,1636.4,1636.3,1.33860982]
[1693939551011,20.62428034,1636.4,1636.3,0.27636202]
[1693939551587,20.62428034,1636.4,1636.1,1.6040236]
[1693939551796,20.62428034,1636.4,1636.1,1.70421867]
[1693939552027,20.62428034,1636.4,1636.2,0.2648166]
[1693939552244,1.321,1636.3,1636.2,0.2648166]
[1693939552522,21.84954803,1636.3,1636.2,0.2648166]
[1693939552693,21.85962411,1636.3,1636.2,0.2648166]
[1693939553093,21.85962411,1636.3,1635.9,6.7545745]
[1693939553318,21.85962411,1636.3,1636.0,1.06241763]
[1693939553522,23.88572411,1636.3,1636.0,1.06241763]
[1693939553704,2.38857241,1636.2,1635.9,0.6419145]
[1693939553904,6.11209,1636.1,1635.9,1.70433582]
[1693939554697,0.01004745,1636.0,1635.9,1.70433582]
[1693939555912,0.01004745,1636.0,1635.9,1.06242132]
[1693939556117,0.01004745,1636.0,1635.9,7.17526132]
[1693939556537,0.01004745,1636.0,1635.9,7.41804504]
[1693939560320,0.01004745,1636.0,1635.9,8.83534299]
[1693939560610,0.01004745,1636.0,1635.9,25.09014635]
[1693939560807,30.531,1636.4,1635.9,37.04428409]
[1693939561007,0.101,1636.4,1636.1,0.64055756]
[1693939561211,0.101,1636.4,1636.2,21.40217426]
[1693939561393,0.101,1636.4,1636.3,2.14021743]
[1693939561598,0.101,1636.4,1636.3,15.68389743]
[1693939564838,0.11067887,1636.4,1636.3,15.68389743]
[1693939567042,0.11067887,1636.4,1636.3,24.86225169]
[1693939567243,0.11067887,1636.4,1636.3,27.51757547]
[1693939567541,0.11067887,1636.4,1636.3,28.15813303]
[1693939571231,0.11067887,1636.4,1636.3,28.40064847]
[1693939572239,0.11067887,1636.4,1636.3,33.40064847]
[1693939587279,0.11067887,1636.4,1636.3,39.82964847]
[1693939587478,0.11067887,1636.4,1636.3,42.82964847]
[1693939587689,0.11067887,1636.4,1636.3,45.27405789]
[1693939587887,0.11067887,1636.4,1636.3,53.27927303]
[1693939587888,1e-08,1636.4,1636.3,53.27927303]
[1693939588056,1e-08,1636.4,1636.3,55.31843669]
[1693939588859,0.00832465,1636.4,1636.3,55.31843669]
[1693939589357,0.00832465,1636.4,1636.3,52.31843669]
[1693939590068,0.00832465,1636.4,1636.3,55.31843669]
[1693939590651,0.00832465,1636.4,1636.3,52.31843669]
[1693939590891,0.00832465,1636.4,1636.3,55.31843669]
[1693939594214,0.00832465,1636.4,1636.3,55.79843669]
[1693939594617,0.101,1636.8,1636.3,55.79843669]
[1693939594618,0.101,1636.8,1636.7,9.429]
[1693939594781,2.13410815,1637.1,1636.7,56.00587612]
[1693939594981,2.13410815,1637.1,1636.8,18.87417531]
[1693939595172,2.13410815,1637.1,1636.8,37.20261531]
[1693939595788,2.13410815,1637.1,1636.8,38.4809099]
[1693939596077,2.13410815,1637.1,1636.8,37.20261531]
[1693939596277,2.13410815,1637.1,1636.8,44.76420424]
[1693939597707,0.10875691,1636.9,1636.8,44.26420424]
[1693939598714,0.101,1636.9,1636.8,44.26420424]
[1693939599914,0.101,1636.9,1636.8,42.66549761]
[1693939600117,0.101,1636.9,1636.8,44.26128492]
[1693939600634,0.101,1636.9,1636.8,42.66549761]
[1693939600840,1.59809447,1637.1,1637.0,6.429]
[1693939601045,1.59809447,1637.1,1637.0,35.06121032]
[1693939601218,1.59809447,1637.1,1637.0,38.77852754]
[1693939601542,1.59809447,1637.1,1637.0,44.02066838]
[1693939602053,1.59809447,1637.1,1637.0,43.06325755]
[1693939603736,1.59809447,1637.1,1637.0,44.65895508]
[1693939604909,1.59809447,1637.1,1637.0,43.38239705]
[1693939606723,1.59809447,1637.1,1637.0,41.78669952]
[1693939607962,0.46565554,1637.1,1637.0,41.78669952]
[1693939609638,1.8704,1637.3,1637.1,0.93131107]
[1693939609849,1.8704,1637.3,1637.2,12.31258195]
[1693939610020,1.8704,1637.3,1637.2,14.96790573]
[1693939610225,1.8704,1637.3,1637.2,17.93829804]
[1693939610525,1.8704,1637.3,1637.2,24.04627804]
[1693939610725,1.8704,1637.3,1637.2,26.17040868]
[1693939611260,1.8704,1637.3,1637.2,24.0330041]
[1693939611759,1.8704,1637.3,1637.2,25.8312149]
[1693939611921,0.101,1637.4,1637.2,25.8312149]
[1693939612120,0.101,1637.4,1637.2,26.76083888]
[1693939612659,2.13727406,1637.3,1637.2,26.76083888]
[1693939612855,2.14447332,1637.3,1637.2,26.76083888]
[1693939613359,2.14447332,1637.3,1637.2,31.76083888]
[1693939614223,2.14447332,1637.3,1637.2,29.1462235]
[1693939616427,2.14447332,1637.3,1637.2,29.38825737]
[1693939619358,2.14447332,1637.3,1637.2,30.34541489]
[1693939619865,2.14447332,1637.3,1637.2,31.62162051]
[1693939621762,2.14447332,1637.3,1637.2,32.25680735]
[1693939622231,2.14447332,1637.3,1637.2,33.21402838]
[1693939622426,2.14447332,1637.3,1637.2,32.25680735]
[1693939623663,2.14447332,1637.3,1637.2,33.85254059]
[1693939623959,2.14447332,1637.3,1637.2,32.25680735]
[1693939625545,2.14447332,1637.3,1637.2,33.85254059]
[1693939625736,2.14447332,1637.3,1637.2,36.13385035]
[1693939628037,1.01218343,1637.3,1637.2,36.13385035]
[1693939630849,1.01218343,1637.3,1637.2,36.6242999]
[1693939631051,1.01218343,1637.3,1637.2,44.45756666]
[1693939631256,0.101,1637.4,1637.3,25.43800874]
[1693939631503,0.101,1637.4,1637.3,41.62487209]
[1693939631798,0.1076523,1637.4,1637.3,41.86685248]
[1693939632782,0.1076523,1637.4,1637.3,40.27026496]
[1693939632991,0.1076523,1637.4,1637.3,41.86770448]
[1693939633279,0.1076523,1637.4,1637.3,40.27026496]
[1693939633681,0.1076523,1637.4,1637.3,61.06867883]
[1693939633909,0.1076523,1637.4,1637.3,62.28444819]
[1693939634382,0.1076523,1637.4,1637.3,64.53134862]
[1693939634776,0.1076523,1637.4,1637.3,62.28444819]
[1693939635873,0.1076523,1637.4,1637.3,64.53134862]
[1693939636089,0.1076523,1637.4,1637.3,62.28444819]
[1693939636890,0.1076523,1637.4,1637.3,64.53134862]
[1693939638321,0.1076523,1637.4,1637.3,64.03134862]
[1693939640183,2.3e-06,1637.4,1637.3,64.03134862]
[1693939640398,0.101,1637.6,1637.5,6.84780936]
[1693939640589,0.101,1637.6,1637.5,46.00990697]
[1693939640904,1.80874969,1637.8,1637.5,49.72638197]
[1693939641087,1.80874969,1637.8,1637.7,18.31836]
[1693939641429,1.80874969,1637.8,1637.7,25.63730869]
[1693939641601,1.80874969,1637.8,1637.7,30.76143933]
[1693939641803,1.81443645,1637.8,1637.7,34.42807898]
[1693939642190,1.81443645,1637.8,1637.7,39.42807898]
[1693939642389,1.81443645,1637.8,1637.7,40.74907898]
[1693939643088,1.81443645,1637.8,1637.7,37.08243933]
[1693939643801,1.81443645,1637.8,1637.7,38.36033525]
[1693939644713,1.81443645,1637.8,1637.7,36.76221688]
[1693939646025,1.81443645,1637.8,1637.7,37.72053833]
[1693939646615,1.81443645,1637.8,1637.7,37.96230489]
[1693939646815,1.81443645,1637.8,1637.7,36.68440897]
[1693939648028,0.68237096,1637.8,1637.7,36.68440897]
[1693939648826,0.68237096,1637.8,1637.7,37.32324323]
[1693939649989,0.68237096,1637.8,1637.7,34.24079114]
[1693939651230,0.68237096,1637.8,1637.7,32.91979114]
[1693939651431,0.68237096,1637.8,1637.7,34.24079114]
[1693939652909,0.68237096,1637.8,1637.7,33.60195688]
[1693939654008,0.68237096,1637.8,1637.7,32.28095688]
[1693939654696,0.68237096,1637.8,1637.7,33.60195688]
[1693939656572,0.68237096,1637.8,1637.7,29.21394262]
[1693939656837,1.06070806,1637.8,1637.7,29.28058644]
[1693939657131,0.68237096,1637.8,1637.7,14.00133218]
[1693939657333,0.68237096,1637.8,1637.7,12.40935826]
[1693939658015,0.68237096,1637.8,1637.7,18.51547826]
[1693939659112,0.68237096,1637.8,1637.7,13.51547826]
[1693939660951,0.68237096,1637.8,1637.7,23.93780644]
[1693939661148,3.101,1637.9,1637.7,36.36683035]
[1693939661314,3.101,1637.9,1637.8,16.13100261]
[1693939661519,3.101,1637.9,1637.8,34.44825261]
[1693939661753,3.10674823,1637.9,1637.8,38.4123483]
[1693939661915,3.10674823,1637.9,1637.8,43.39836014]
[1693939662316,0.101,1638.1,1637.8,43.39836014]
[1693939662546,0.101,1638.1,1638.0,0.63864258]
[1693939662729,0.101,1638.1,1638.0,36.12565684]
[1693939662911,0.101,1638.1,1638.0,38.77916334]
[1693939663116,0.101,1638.1,1638.0,40.85515581]
[1693939663529,0.101,1638.1,1638.0,42.17615581]
[1693939663739,0.10630036,1638.1,1638.0,42.17615581]
[1693939664518,0.10630036,1638.1,1638.0,44.61759576]
[1693939664717,0.101,1638.1,1638.0,44.61759576]
[1693939665839,0.10630036,1638.1,1638.0,44.61759576]
[1693939668024,1e-08,1638.1,1638.0,44.61759576]
[1693939668817,2.13596973,1638.3,1638.0,44.61759576]
[1693939669020,2.13596973,1638.3,1638.1,12.14141374]
[1693939669252,2.13596973,1638.3,1638.2,19.3742517]
[1693939669455,2.13596973,1638.3,1638.2,24.03330076]
[1693939669762,2.14108175,1638.3,1638.2,24.03330076]
[1693939670135,2.14108175,1638.3,1638.2,29.03330076]
[1693939672258,2.14108175,1638.3,1638.2,13.7577665]
[1693939672454,2.14108175,1638.3,1638.2,18.2699917]
[1693939672624,2.14108175,1638.3,1638.2,19.8620265]
[1693939673666,2.14108175,1638.3,1638.2,14.8620265]
[1693939673823,2.14108175,1638.3,1638.2,13.2699917]
[1693939676361,2.14108175,1638.3,1638.2,13.51130582]
[1693939679361,2.14108175,1638.3,1638.2,18.51130582]
[1693939679564,2.55307993,1638.3,1638.2,6.30278582]
[1693939679732,8.65695993,1638.3,1638.2,6.30278582]
[1693939679929,8.65695993,1638.3,1638.2,5.24131412]
[1693939680353,8.65695993,1638.3,1638.2,6.30241022]
[1693939680533,8.65695993,1638.3,1638.2,5.24131412]
[1693939680733,8.65695993,1638.3,1638.2,0.24131412]
[1693939682961,2.55307993,1638.3,1638.2,6.34557412]
[1693939683555,8.65695993,1638.3,1638.2,0.24131412]
[1693939685343,8.65695993,1638.3,1638.0,12.20963]
[1693939685743,0.86569599,1638.2,1638.0,12.20963]
[1693939686775,0.00510024,1638.1,1638.0,6.10481]
[1693939686974,0.00510024,1638.1,1638.0,12.16597496]
[1693939687876,6.97003599,1638.2,1638.0,11.10481]
[1693939688180,6.97003599,1638.2,1638.0,6.10481]
[1693939688477,0.6970036,1638.1,1638.0,6.10481]
[1693939688867,0.70210384,1638.1,1638.0,6.10481]
[1693939690062,0.00510024,1638.1,1638.0,6.10481]
[1693939690857,6.97003599,1638.2,1638.0,6.10481]
[1693939691500,6.97003599,1638.2,1638.1,0.24879249]
[1693939691796,6.97514399,1638.2,1638.1,0.24879249]
[1693939692173,1.88743798,1638.1,1638.0,6.10481]
[1693939692379,2.77369618,1638.1,1638.0,6.10481]
[1693939692587,1.88743798,1638.1,1638.0,6.10481]
[1693939692896,1.89253822,1638.1,1638.0,6.10481]
[1693939693698,7.99716822,1638.1,1637.9,6.10509]
[1693939693900,0.79971682,1638.0,1637.9,6.10509]
[1693939694800,0.8048093,1638.0,1637.9,6.10509]
[1693939694970,0.00509248,1638.0,1637.9,6.10509]
[1693939699794,0.00509248,1638.0,1637.9,6.34667283]
[1693939699995,0.00509248,1638.0,1637.9,12.45204283]
[1693939707590,0.00509248,1638.0,1637.9,17.45204283]
[1693939709123,0.00509248,1638.0,1637.9,11.34667283]
[1693939709317,0.00509248,1638.0,1637.9,6.34667283]
[1693939709609,0.80480953,1638.0,1637.9,6.34667283]
[1693939710404,0.00509248,1638.0,1637.9,6.34667283]
[1693939716944,0.00509248,1638.0,1637.9,0.24158283]
[1693939717145,12.21509248,1638.0,1637.9,0.24158283]
[1693939717321,6.11009248,1638.0,1637.9,0.24158283]
[1693939717648,6.11009248,1638.0,1637.7,6.10599]
[1693939717649,1.89490844,1637.9,1637.7,6.10599]
[1693939717844,3.30592553,1637.9,1637.7,6.10599]
[1693939718743,0.00384234,1637.8,1637.7,6.10599]
[1693939719046,0.00384234,1637.8,1637.7,11.10599]
[1693939719406,0.00384234,1637.8,1637.7,17.21211]
[1693939719967,0.00384234,1637.8,1637.7,11.10612]
[1693939720317,0.00384234,1637.8,1637.7,6.10612]
[1693939722590,0.00384234,1637.8,1637.7,3.96936786]
[1693939722743,0.00384234,1637.8,1637.7,6.10612]
[1693939725258,0.00384234,1637.8,1637.7,6.33883157]
[1693939725847,1.41101709,1637.9,1637.7,6.33883157]
[1693939726047,1.41101709,1637.9,1637.7,6.10612]
[1693939726681,1.41101709,1637.9,1637.8,0.21901464]
[1693939726875,7.51638709,1637.9,1637.8,0.21901464]
[1693939727076,1.9177375,1637.7,1637.6,6.10613]
[1693939727249,1.9177375,1637.7,1637.6,7.16748657]
[1693939728674,1.9177375,1637.7,1637.6,1.06135657]
[1693939728861,1.9177375,1637.7,1637.4,0.6381334]
[1693939728862,14.1299775,1637.7,1637.4,0.6381334]
[1693939729073,1.41299775,1637.6,1637.5,5.0]
[1693939729294,1.41299775,1637.6,1637.5,1.0614689]
[1693939729794,1.41299775,1637.6,1637.4,6.10721]
[1693939730292,1.41299775,1637.6,1637.5,7.16835629]
[1693939730496,1.41299775,1637.6,1637.5,13.27522629]
[1693939730674,3.8297375,1637.7,1637.5,6.10687]
[1693939733767,3.8297375,1637.7,1637.6,0.20176362]
[1693939733968,9.9358575,1637.7,1637.6,0.20176362]
[1693939737973,9.9358575,1637.7,1637.4,12.8521734]
[1693939738175,9.9358575,1637.7,1637.5,1.06142714]
[1693939738373,11.73242425,1637.7,1637.5,1.26324467]
[1693939738575,11.73242425,1637.7,1637.5,0.20181753]
[1693939739092,23.94466425,1637.7,1637.5,0.20181753]
[1693939739280,25.26566425,1637.7,1637.2,0.6381334]
[1693939739609,2.52656643,1637.6,1637.3,5.0]
[1693939739805,2.13714355,1637.4,1637.3,5.0]